[Event "*** MasterClass Titled Tuesday Blitz"]
[Site "Chess.com"]
[Date "2017.12.12"]
[Round "9"]
[White "Sam_ChessMood"]
[Black "ristingho"]
[Result "1/2-1/2"]
[WhiteElo "2592"]
[BlackElo "2364"]
[TimeControl "180+2"]
[EndTime "15:06:04 PST"]
[Termination "Game drawn by agreement"]

1. d4 {[%clk 0:03:01.9]} 1... Nf6 {[%clk 0:02:54.3]} 2. Nc3 {[%clk 0:03:02.4]}
2... d5 {[%clk 0:02:51.6]} 3. Bf4 {[%clk 0:03:03.2]} 3... a6 {[%clk 0:02:45.7]}
4. e3 {[%clk 0:03:02.9]} 4... c5 {[%clk 0:02:44.7]} 5. dxc5 {[%clk 0:03:03.5]}
5... Nc6 {[%clk 0:02:44.3]} 6. a3 {[%clk 0:02:57.9]} 6... e5 {[%clk 0:02:39]} 7.
Bg5 {[%clk 0:02:58.8]} 7... d4 {[%clk 0:02:33.1]} 8. Ne4 {[%clk 0:02:40.5]} 8...
Bf5 {[%clk 0:02:31.4]} 9. Bxf6 {[%clk 0:02:32.6]} 9... gxf6 {[%clk 0:02:30.9]}
10. Ng3 {[%clk 0:02:33.6]} 10... Bg6 {[%clk 0:02:20.5]} 11. e4 {[%clk
0:02:34.8]} 11... Bxc5 {[%clk 0:02:20.5]} 12. Nf3 {[%clk 0:02:29.2]} 12... Qd7
{[%clk 0:02:16.5]} 13. Bd3 {[%clk 0:02:29.3]} 13... O-O {[%clk 0:02:03.5]} 14.
O-O {[%clk 0:02:29.2]} 14... Rac8 {[%clk 0:02:03.1]} 15. Nh4 {[%clk 0:02:25.5]}
15... Ne7 {[%clk 0:01:59.1]} 16. Qf3 {[%clk 0:02:23.5]} 16... Qc6 {[%clk
0:01:47.8]} 17. Nhf5 {[%clk 0:02:18.5]} 17... Bxf5 {[%clk 0:01:38.5]} 18. Nxf5
{[%clk 0:02:16]} 18... Nxf5 {[%clk 0:01:39.5]} 19. Qxf5 {[%clk 0:02:17.6]} 19...
Qe6 {[%clk 0:01:40.5]} 20. Qf3 {[%clk 0:02:16.3]} 20... Kh8 {[%clk 0:01:38.8]}
21. g3 {[%clk 0:02:16.3]} 21... Rg8 {[%clk 0:01:37.1]} 22. Kg2 {[%clk
0:02:15.9]} 22... b5 {[%clk 0:01:34.2]} 23. a4 {[%clk 0:02:14.8]} 23... b4
{[%clk 0:01:35.2]} 24. a5 {[%clk 0:02:14.1]} 24... Be7 {[%clk 0:01:31.2]} 25.
Qe2 {[%clk 0:02:09.8]} 25... Rc6 {[%clk 0:01:29.8]} 26. b3 {[%clk 0:02:07.8]}
26... Rgc8 {[%clk 0:01:23.2]} 27. Ra2 {[%clk 0:01:48.4]} 27... Bf8 {[%clk
0:01:18.2]} 28. Bc4 {[%clk 0:01:47]} 28... Rxc4 {[%clk 0:01:17]} 29. bxc4 {[%clk
0:01:48]} 29... Rxc4 {[%clk 0:01:14.6]} 30. Rb1 {[%clk 0:01:47.5]} 30... Qc6
{[%clk 0:01:11.4]} 31. Rb3 {[%clk 0:01:31]} 31... Be7 {[%clk 0:01:07.7]} 32. Rf3
{[%clk 0:01:29.9]} 32... Rc5 {[%clk 0:01:02.1]} 33. h4 {[%clk 0:01:28.3]} 33...
Rc4 {[%clk 0:01:02.7]} 34. h5 {[%clk 0:01:27.7]} 34... h6 {[%clk 0:01:00]} 35.
Rb2 {[%clk 0:01:26.3]} 35... Kh7 {[%clk 0:00:57.4]} 36. Rd3 {[%clk 0:01:22.9]}
36... Bd8 {[%clk 0:00:54.5]} 37. Qf3 {[%clk 0:01:08.6]} 37... Bxa5 {[%clk
0:00:49.7]} 38. Qf5+ {[%clk 0:01:09.1]} 38... Kg7 {[%clk 0:00:50.8]} 39. Qg4+
{[%clk 0:00:50.3]} 39... Kh7 {[%clk 0:00:50.5]} 40. Rf3 {[%clk 0:00:50.9]} 40...
Bd8 {[%clk 0:00:47.6]} 41. Qf5+ {[%clk 0:00:42.7]} 41... Kg7 {[%clk 0:00:47.7]}
42. Qg4+ {[%clk 0:00:43.6]} 42... Kh8 {[%clk 0:00:48.9]} 1/2-1/2

[Event "*** MasterClass Titled Tuesday Blitz"]
[Site "Chess.com"]
[Date "2017.12.12"]
[Round "9"]
[White "Quiet_Desperation"]
[Black "AndrewDGreen"]
[Result "1-0"]
[WhiteElo "2361"]
[BlackElo "2073"]
[TimeControl "180+2"]
[EndTime "15:06:20 PST"]
[Termination "Quiet_Desperation won on time"]

1. e4 {[%clk 0:03:01.9]} 1... Nf6 {[%clk 0:02:59.6]} 2. e5 {[%clk 0:03:02.9]}
2... Nd5 {[%clk 0:03:01]} 3. Nc3 {[%clk 0:03:04.2]} 3... Nxc3 {[%clk 0:02:59.4]}
4. bxc3 {[%clk 0:03:04.8]} 4... d5 {[%clk 0:02:59.9]} 5. Nf3 {[%clk 0:03:05.9]}
5... c5 {[%clk 0:03:00.3]} 6. d4 {[%clk 0:03:07]} 6... Nc6 {[%clk 0:02:59.3]} 7.
Be3 {[%clk 0:03:06.8]} 7... g6 {[%clk 0:02:55.2]} 8. h3 {[%clk 0:03:00.4]} 8...
Bg7 {[%clk 0:02:56.1]} 9. Be2 {[%clk 0:03:01.5]} 9... O-O {[%clk 0:02:53.4]} 10.
O-O {[%clk 0:03:02.7]} 10... f6 {[%clk 0:02:54.4]} 11. exf6 {[%clk 0:03:01.9]}
11... Bxf6 {[%clk 0:02:51.9]} 12. Bh6 {[%clk 0:03:01.6]} 12... Re8 {[%clk
0:02:48.8]} 13. Rb1 {[%clk 0:02:52]} 13... b6 {[%clk 0:02:46]} 14. Bb5 {[%clk
0:02:47.1]} 14... Bb7 {[%clk 0:02:46.7]} 15. dxc5 {[%clk 0:02:47.6]} 15... bxc5
{[%clk 0:02:48.6]} 16. Re1 {[%clk 0:02:35]} 16... e5 {[%clk 0:02:41.9]} 17. Nh2
{[%clk 0:02:28.3]} 17... Qd6 {[%clk 0:02:37.7]} 18. Ng4 {[%clk 0:02:24.5]} 18...
Bh8 {[%clk 0:02:39]} 19. Ba4 {[%clk 0:02:05.7]} 19... Bc8 {[%clk 0:02:29.4]} 20.
Bb3 {[%clk 0:02:00.4]} 20... Be6 {[%clk 0:02:28.7]} 21. Qf3 {[%clk 0:01:41.2]}
21... Bf7 {[%clk 0:02:03.1]} 22. Rbd1 {[%clk 0:01:22.6]} 22... e4 {[%clk
0:01:58.9]} 23. Rxe4 {[%clk 0:01:12.4]} 23... Ne5 {[%clk 0:00:38.5]} 24. Nxe5
{[%clk 0:01:00.2]} 24... Bxe5 {[%clk 0:00:39.1]} 25. Ree1 {[%clk 0:00:54.9]}
25... Rad8 {[%clk 0:00:27]} 26. Bg5 {[%clk 0:00:50.3]} 26... Bh2+ {[%clk
0:00:22.2]} 27. Kh1 {[%clk 0:00:50.5]} 27... Rxe1+ {[%clk 0:00:23]} 28. Rxe1
{[%clk 0:00:51.4]} 28... Rf8 {[%clk 0:00:18.9]} 29. Bh6 {[%clk 0:00:47.6]} 29...
Rc8 {[%clk 0:00:13.6]} 30. g3 {[%clk 0:00:38.3]} 30... c4 {[%clk 0:00:07.6]} 31.
Ba4 {[%clk 0:00:19]} 31... Qa6 {[%clk 0:00:08.5]} 32. Re7 {[%clk 0:00:16.5]} 1-0

[Event "*** MasterClass Titled Tuesday Blitz"]
[Site "Chess.com"]
[Date "2017.12.12"]
[Round "9"]
[White "leopato"]
[Black "liquormark"]
[Result "1-0"]
[WhiteElo "1795"]
[BlackElo "1972"]
[TimeControl "180+2"]
[EndTime "15:06:25 PST"]
[Termination "leopato won by checkmate"]

1. e3 {[%clk 0:02:01.4]} 1... d6 {[%clk 0:03:00]} 2. b3 {[%clk 0:02:03.3]} 2...
Nf6 {[%clk 0:03:01.3]} 3. Bb2 {[%clk 0:02:04.1]} 3... g6 {[%clk 0:03:02.7]} 4.
f4 {[%clk 0:02:04.4]} 4... Bg7 {[%clk 0:03:03.7]} 5. Nf3 {[%clk 0:02:06.3]} 5...
c5 {[%clk 0:03:04.8]} 6. Bb5+ {[%clk 0:02:06.7]} 6... Bd7 {[%clk 0:03:04.6]} 7.
a4 {[%clk 0:02:06.2]} 7... O-O {[%clk 0:03:05.2]} 8. O-O {[%clk 0:02:06.3]} 8...
a6 {[%clk 0:03:04.2]} 9. Bd3 {[%clk 0:02:02.4]} 9... Nc6 {[%clk 0:03:03.7]} 10.
Qe1 {[%clk 0:02:03]} 10... Rb8 {[%clk 0:03:04.5]} 11. Qh4 {[%clk 0:01:52.4]}
11... b5 {[%clk 0:03:04]} 12. axb5 {[%clk 0:01:51]} 12... axb5 {[%clk
0:03:05.9]} 13. Nc3 {[%clk 0:01:42]} 13... b4 {[%clk 0:03:06.2]} 14. Ne2 {[%clk
0:01:26.9]} 14... Ra8 {[%clk 0:02:51.4]} 15. Ng3 {[%clk 0:01:03.9]} 15... Qc7
{[%clk 0:02:44.8]} 16. f5 {[%clk 0:00:55.4]} 16... Rfb8 {[%clk 0:02:32.3]} 17.
Ng5 {[%clk 0:00:50.7]} 17... Ne5 {[%clk 0:02:12.6]} 18. Bxe5 {[%clk 0:00:36.2]}
18... dxe5 {[%clk 0:02:14.4]} 19. Rxa8 {[%clk 0:00:32.5]} 19... Rxa8 {[%clk
0:02:14.8]} 20. fxg6 {[%clk 0:00:29.6]} 20... hxg6 {[%clk 0:02:14.6]} 21. N3e4
{[%clk 0:00:27.9]} 21... Rb8 {[%clk 0:01:57.7]} 22. Nxf6+ {[%clk 0:00:22.3]}
22... exf6 {[%clk 0:01:59.5]} 23. Rxf6 {[%clk 0:00:20.5]} 23... Be8 {[%clk
0:01:18.2]} 24. Qh7+ {[%clk 0:00:13.2]} 24... Kf8 {[%clk 0:01:17.6]} 25. Ne6+
{[%clk 0:00:14.4]} 25... Ke7 {[%clk 0:01:08.7]} 26. Nxc7 {[%clk 0:00:10.1]}
26... Bxf6 {[%clk 0:01:10.6]} 27. Nd5+ {[%clk 0:00:10.1]} 27... Ke6 {[%clk
0:01:10.6]} 28. Bc4 {[%clk 0:00:11.1]} 28... Bd8 {[%clk 0:01:07.6]} 29. Qh3+
{[%clk 0:00:12.5]} 29... f5 {[%clk 0:01:07.7]} 30. e4 {[%clk 0:00:13.4]} 30...
Bd7 {[%clk 0:01:02.3]} 31. exf5+ {[%clk 0:00:09.6]} 31... gxf5 {[%clk
0:01:02.5]} 32. Nb6+ {[%clk 0:00:11.1]} 32... Kd6 {[%clk 0:01:03.7]} 33. Nxd7
{[%clk 0:00:09.6]} 33... Kc7 {[%clk 0:01:05.1]} 34. Qxf5 {[%clk 0:00:10.4]}
34... Ra8 {[%clk 0:01:05.3]} 35. Nxe5 {[%clk 0:00:09.7]} 35... Ra1+ {[%clk
0:01:05.3]} 36. Kf2 {[%clk 0:00:11.5]} 36... Bh4+ {[%clk 0:01:04.8]} 37. g3
{[%clk 0:00:12.1]} 37... Bd8 {[%clk 0:01:05.9]} 38. Qd7+ {[%clk 0:00:12.6]}
38... Kb6 {[%clk 0:01:07.8]} 39. Qc6+ {[%clk 0:00:07.7]} 39... Ka7 {[%clk
0:01:08.6]} 40. Qd7+ {[%clk 0:00:07.9]} 40... Kb6 {[%clk 0:01:09.2]} 41. Qxd8+
{[%clk 0:00:09]} 41... Ka7 {[%clk 0:01:10.4]} 42. Qc7+ {[%clk 0:00:09.7]} 42...
Ka8 {[%clk 0:01:10.7]} 43. Bd5# {[%clk 0:00:04.2]} 1-0

[Event "*** MasterClass Titled Tuesday Blitz"]
[Site "Chess.com"]
[Date "2017.12.12"]
[Round "9"]
[White "SharkAnto55"]
[Black "AndreyOstrovskiy"]
[Result "0-1"]
[WhiteElo "2373"]
[BlackElo "2485"]
[TimeControl "180+2"]
[EndTime "15:06:28 PST"]
[Termination "AndreyOstrovskiy won by resignation"]

1. d4 {[%clk 0:03:01.9]} 1... Nf6 {[%clk 0:02:59]} 2. c4 {[%clk 0:03:02.4]} 2...
e6 {[%clk 0:02:59.9]} 3. Nf3 {[%clk 0:03:03.1]} 3... b6 {[%clk 0:03:00.5]} 4. g3
{[%clk 0:03:04.1]} 4... c6 {[%clk 0:03:00.3]} 5. Nc3 {[%clk 0:03:03]} 5... d5
{[%clk 0:02:57]} 6. Bg2 {[%clk 0:02:53.9]} 6... Be7 {[%clk 0:02:54.8]} 7. O-O
{[%clk 0:02:53.6]} 7... O-O {[%clk 0:02:55.8]} 8. Ne5 {[%clk 0:02:50.5]} 8...
Bb7 {[%clk 0:02:56.4]} 9. e4 {[%clk 0:02:48.1]} 9... dxc4 {[%clk 0:02:56.7]} 10.
Nxc4 {[%clk 0:02:46.2]} 10... Ba6 {[%clk 0:02:57.3]} 11. b3 {[%clk 0:02:43.2]}
11... b5 {[%clk 0:02:58.1]} 12. Ne5 {[%clk 0:02:39.8]} 12... b4 {[%clk
0:02:59.3]} 13. Na4 {[%clk 0:02:41.2]} 13... Bxf1 {[%clk 0:02:58.6]} 14. Kxf1
{[%clk 0:02:42.7]} 14... Nfd7 {[%clk 0:02:41.3]} 15. Nd3 {[%clk 0:02:39.6]}
15... Nb6 {[%clk 0:02:39.2]} 16. Be3 {[%clk 0:02:34.5]} 16... Nxa4 {[%clk
0:02:39.6]} 17. bxa4 {[%clk 0:02:36.4]} 17... Nd7 {[%clk 0:02:32]} 18. Rc1
{[%clk 0:02:34.2]} 18... Rc8 {[%clk 0:02:31.3]} 19. Qb3 {[%clk 0:02:26.5]} 19...
Qa5 {[%clk 0:02:23.5]} 20. e5 {[%clk 0:01:39.4]} 20... c5 {[%clk 0:01:41.5]} 21.
d5 {[%clk 0:01:39]} 21... Qa6 {[%clk 0:01:20]} 22. Kg1 {[%clk 0:00:21.5]} 22...
c4 {[%clk 0:01:07.8]} 23. Nxb4 {[%clk 0:00:21.8]} 23... Qa5 {[%clk 0:01:04.9]}
24. Rxc4 {[%clk 0:00:07.8]} 24... Rxc4 {[%clk 0:01:04.4]} 25. Nc6 {[%clk
0:00:07.3]} 25... Qe1+ {[%clk 0:00:32.9]} 26. Bf1 {[%clk 0:00:05.9]} 26... Rxc6
{[%clk 0:00:26.7]} 27. dxc6 {[%clk 0:00:07.8]} 27... Nxe5 {[%clk 0:00:23.1]} 28.
Qb7 {[%clk 0:00:06.8]} 28... Bd6 {[%clk 0:00:14.1]} 29. c7 {[%clk 0:00:05.3]}
29... Qc3 {[%clk 0:00:12.7]} 30. c8=Q {[%clk 0:00:02.2]} 30... Qxc8 {[%clk
0:00:13.2]} 31. Qxa7 {[%clk 0:00:03]} 31... Bb8 {[%clk 0:00:13.9]} 0-1

[Event "*** MasterClass Titled Tuesday Blitz"]
[Site "Chess.com"]
[Date "2017.12.12"]
[Round "9"]
[White "PulpanJ"]
[Black "Jbd735"]
[Result "1-0"]
[WhiteElo "2487"]
[BlackElo "2273"]
[TimeControl "180+2"]
[EndTime "15:06:53 PST"]
[Termination "PulpanJ won by resignation"]

1. d4 {[%clk 0:03:00.5]} 1... d5 {[%clk 0:03:00.3]} 2. Nf3 {[%clk 0:03:01.4]}
2... Nf6 {[%clk 0:03:00.5]} 3. c4 {[%clk 0:03:02.2]} 3... c6 {[%clk 0:03:01.2]}
4. Nbd2 {[%clk 0:03:02.9]} 4... e6 {[%clk 0:02:59.5]} 5. g3 {[%clk 0:02:58.6]}
5... c5 {[%clk 0:02:34.5]} 6. Bg2 {[%clk 0:03:00.5]} 6... Nc6 {[%clk 0:02:32.6]}
7. O-O {[%clk 0:02:58.9]} 7... cxd4 {[%clk 0:02:26.8]} 8. cxd5 {[%clk
0:02:48.7]} 8... Nxd5 {[%clk 0:02:22.8]} 9. Nc4 {[%clk 0:02:42.5]} 9... Bc5
{[%clk 0:02:16.6]} 10. a3 {[%clk 0:02:32.8]} 10... a5 {[%clk 0:02:16.9]} 11.
Nfe5 {[%clk 0:02:16.1]} 11... O-O {[%clk 0:02:00.7]} 12. Nxc6 {[%clk 0:02:12.7]}
12... bxc6 {[%clk 0:02:00.7]} 13. Ne5 {[%clk 0:02:13.9]} 13... Qc7 {[%clk
0:01:49.7]} 14. Nd3 {[%clk 0:02:06.5]} 14... Bb6 {[%clk 0:01:44.6]} 15. Nf4
{[%clk 0:02:03.4]} 15... Bb7 {[%clk 0:01:38]} 16. Bd2 {[%clk 0:02:01.9]} 16...
e5 {[%clk 0:01:36.7]} 17. Nxd5 {[%clk 0:01:56.5]} 17... cxd5 {[%clk 0:01:37.5]}
18. Qb3 {[%clk 0:01:57.8]} 18... Qd6 {[%clk 0:01:32.1]} 19. Rac1 {[%clk
0:01:49.7]} 19... Rfd8 {[%clk 0:01:32]} 20. Bg5 {[%clk 0:01:47.6]} 20... f6
{[%clk 0:01:31.3]} 21. Bd2 {[%clk 0:01:48.5]} 21... Kh8 {[%clk 0:01:24.4]} 22.
Rc2 {[%clk 0:01:44.3]} 22... Ba6 {[%clk 0:01:09.4]} 23. Rfc1 {[%clk 0:01:43.6]}
23... Bc4 {[%clk 0:01:05.6]} 24. Qa4 {[%clk 0:01:38.3]} 24... Bxe2 {[%clk
0:00:43.9]} 25. Rc6 {[%clk 0:01:36.7]} 25... Qd7 {[%clk 0:00:37.9]} 26. Qb3
{[%clk 0:01:33.9]} 26... Ba7 {[%clk 0:00:29.7]} 27. Bxa5 {[%clk 0:01:29.5]}
27... Bc4 {[%clk 0:00:22.5]} 28. Qa4 {[%clk 0:01:23.3]} 28... Bb6 {[%clk
0:00:17.2]} 29. R6xc4 {[%clk 0:01:14.2]} 29... Qxa4 {[%clk 0:00:14.9]} 30. Rxa4
{[%clk 0:01:14.7]} 30... Rxa5 {[%clk 0:00:15.7]} 31. Rb4 {[%clk 0:01:09.3]}
31... Bc5 {[%clk 0:00:12.8]} 32. Rb7 {[%clk 0:01:10]} 32... Bf8 {[%clk
0:00:11.3]} 33. Kf1 {[%clk 0:01:04.3]} 33... e4 {[%clk 0:00:11.5]} 34. Ke2
{[%clk 0:01:00.9]} 34... f5 {[%clk 0:00:11.7]} 35. Bh3 {[%clk 0:00:59.4]} 35...
d3+ {[%clk 0:00:11]} 36. Kd1 {[%clk 0:01:00.4]} 36... d4 {[%clk 0:00:07]} 37.
Rf7 {[%clk 0:00:59.2]} 37... e3 {[%clk 0:00:03.8]} 38. Rxf5 {[%clk 0:00:59.4]}
38... e2+ {[%clk 0:00:03.6]} 39. Kd2 {[%clk 0:01:00.1]} 39... Rxf5 {[%clk
0:00:04]} 40. Bxf5 {[%clk 0:01:02]} 40... Rb8 {[%clk 0:00:05.2]} 41. b4 {[%clk
0:01:01.2]} 41... Ra8 {[%clk 0:00:05.2]} 42. Bxd3 {[%clk 0:00:58.7]} 42... Rxa3
{[%clk 0:00:05.3]} 43. Rc8 {[%clk 0:00:58.7]} 43... Rxd3+ {[%clk 0:00:06.1]} 44.
Kxd3 {[%clk 0:00:59.8]} 44... Kg8 {[%clk 0:00:07.1]} 45. Kxe2 {[%clk 0:01:00.6]}
45... Kf7 {[%clk 0:00:08.2]} 46. b5 {[%clk 0:01:02.1]} 46... Bb4 {[%clk
0:00:08.7]} 47. Kd3 {[%clk 0:01:04]} 1-0

[Event "*** MasterClass Titled Tuesday Blitz"]
[Site "Chess.com"]
[Date "2017.12.12"]
[Round "9"]
[White "chesstatour"]
[Black "nicegg"]
[Result "1-0"]
[WhiteElo "1997"]
[BlackElo "1981"]
[TimeControl "180+2"]
[EndTime "15:06:53 PST"]
[Termination "chesstatour won by checkmate"]

1. c4 {[%clk 0:03:01.9]} 1... e5 {[%clk 0:02:58.7]} 2. Nc3 {[%clk 0:03:01.5]}
2... d6 {[%clk 0:02:59.1]} 3. Nf3 {[%clk 0:03:00.6]} 3... c6 {[%clk 0:02:58.4]}
4. d4 {[%clk 0:03:01.1]} 4... Nd7 {[%clk 0:02:59.4]} 5. g3 {[%clk 0:03:00.5]}
5... f5 {[%clk 0:02:57.2]} 6. Bg2 {[%clk 0:03:01.8]} 6... h6 {[%clk 0:02:57]} 7.
e4 {[%clk 0:02:31.7]} 7... Qf6 {[%clk 0:02:35.5]} 8. exf5 {[%clk 0:01:33.8]}
8... Qxf5 {[%clk 0:02:33.2]} 9. Nh4 {[%clk 0:01:05.3]} 9... Qf7 {[%clk
0:02:17.7]} 10. Be4 {[%clk 0:00:56.6]} 10... Ne7 {[%clk 0:02:11.6]} 11. Be3
{[%clk 0:00:31]} 11... d5 {[%clk 0:01:58.5]} 12. cxd5 {[%clk 0:00:22.5]} 12...
cxd5 {[%clk 0:01:59]} 13. Bc2 {[%clk 0:00:11.5]} 13... e4 {[%clk 0:01:53.5]} 14.
O-O {[%clk 0:00:10.9]} 14... g5 {[%clk 0:01:37.5]} 15. Ng2 {[%clk 0:00:11.3]}
15... Bg7 {[%clk 0:01:35.1]} 16. Bb3 {[%clk 0:00:12]} 16... O-O {[%clk 0:01:33]}
17. Nxe4 {[%clk 0:00:12.2]} 17... Kh8 {[%clk 0:01:23.1]} 18. Rc1 {[%clk
0:00:11.3]} 18... Nb6 {[%clk 0:01:12.6]} 19. Nd6 {[%clk 0:00:07.5]} 19... Qe6
{[%clk 0:00:57.7]} 20. Nb5 {[%clk 0:00:08.2]} 20... Qh3 {[%clk 0:00:49.9]} 21.
Nc7 {[%clk 0:00:07.8]} 21... Rb8 {[%clk 0:00:44.9]} 22. Qd2 {[%clk 0:00:06.9]}
22... Bg4 {[%clk 0:00:41.8]} 23. Nb5 {[%clk 0:00:05.9]} 23... Nf5 {[%clk
0:00:32.8]} 24. f3 {[%clk 0:00:06.2]} 24... Nxe3 {[%clk 0:00:29.8]} 25. Qxe3
{[%clk 0:00:08.1]} 25... a6 {[%clk 0:00:27.9]} 26. fxg4 {[%clk 0:00:06.9]} 26...
axb5 {[%clk 0:00:26]} 27. Qe2 {[%clk 0:00:06.3]} 27... Bxd4+ {[%clk 0:00:24.7]}
28. Kh1 {[%clk 0:00:07.3]} 28... Nc4 {[%clk 0:00:21.9]} 29. Bxc4 {[%clk
0:00:06.3]} 29... bxc4 {[%clk 0:00:22.3]} 30. Qd2 {[%clk 0:00:07.3]} 30... Ba7
{[%clk 0:00:19.7]} 31. Qxd5 {[%clk 0:00:07]} 31... Rbd8 {[%clk 0:00:19.6]} 32.
Qe5+ {[%clk 0:00:08.1]} 32... Kg8 {[%clk 0:00:19.9]} 33. Rxf8+ {[%clk
0:00:07.6]} 33... Rxf8 {[%clk 0:00:20.8]} 34. Qe6+ {[%clk 0:00:08.1]} 34... Kg7
{[%clk 0:00:20.8]} 35. Qxc4 {[%clk 0:00:07.1]} 35... Rf2 {[%clk 0:00:19.6]} 36.
Qc7+ {[%clk 0:00:07]} 36... Rf7 {[%clk 0:00:17.3]} 37. Qc3+ {[%clk 0:00:06.7]}
37... Kg8 {[%clk 0:00:17.3]} 38. Re1 {[%clk 0:00:06.8]} 38... Bb8 {[%clk
0:00:17.4]} 39. Re8+ {[%clk 0:00:07.1]} 39... Kh7 {[%clk 0:00:18.5]} 40. Qh8+
{[%clk 0:00:06.4]} 40... Kg6 {[%clk 0:00:19]} 41. Rg8+ {[%clk 0:00:08]} 41...
Rg7 {[%clk 0:00:13]} 42. Qxg7# {[%clk 0:00:09]} 1-0

[Event "*** MasterClass Titled Tuesday Blitz"]
[Site "Chess.com"]
[Date "2017.12.12"]
[Round "9"]
[White "1stSecond"]
[Black "Noukii"]
[Result "1/2-1/2"]
[WhiteElo "2492"]
[BlackElo "2608"]
[TimeControl "180+2"]
[EndTime "15:07:25 PST"]
[Termination "Game drawn by repetition"]

1. Nf3 {[%clk 0:03:01.9]} 1... d5 {[%clk 0:03:00.4]} 2. g3 {[%clk 0:03:02.2]}
2... c6 {[%clk 0:02:59.9]} 3. Bg2 {[%clk 0:03:03.4]} 3... Bg4 {[%clk 0:03:01.6]}
4. O-O {[%clk 0:03:04.8]} 4... Nd7 {[%clk 0:03:03.1]} 5. d3 {[%clk 0:03:06.1]}
5... Ngf6 {[%clk 0:03:04.3]} 6. Qe1 {[%clk 0:03:03.1]} 6... e6 {[%clk 0:02:49]}
7. e4 {[%clk 0:03:02.3]} 7... Bc5 {[%clk 0:02:50.3]} 8. h3 {[%clk 0:03:01.6]}
8... Bxf3 {[%clk 0:02:37.2]} 9. Bxf3 {[%clk 0:03:03.5]} 9... Qc7 {[%clk
0:02:36.5]} 10. Bf4 {[%clk 0:02:52]} 10... Bd6 {[%clk 0:02:36.3]} 11. Be3 {[%clk
0:02:46.1]} 11... Bc5 {[%clk 0:02:17.8]} 12. Bxc5 {[%clk 0:02:47.1]} 12... Nxc5
{[%clk 0:02:19.7]} 13. e5 {[%clk 0:02:48.6]} 13... Ng8 {[%clk 0:02:19.7]} 14.
Nd2 {[%clk 0:02:41.7]} 14... Ne7 {[%clk 0:02:20.2]} 15. Bg2 {[%clk 0:02:32.9]}
15... a5 {[%clk 0:02:19.5]} 16. d4 {[%clk 0:02:21]} 16... Nd7 {[%clk 0:02:18.9]}
17. c3 {[%clk 0:02:21.6]} 17... a4 {[%clk 0:02:18.1]} 18. b4 {[%clk 0:02:19.8]}
18... a3 {[%clk 0:02:11.9]} 19. f4 {[%clk 0:02:19]} 19... O-O {[%clk 0:02:12.1]}
20. g4 {[%clk 0:02:20.2]} 20... f5 {[%clk 0:01:39.6]} 21. exf6 {[%clk
0:02:19.8]} 21... Rxf6 {[%clk 0:01:38.1]} 22. g5 {[%clk 0:02:20.8]} 22... Rf7
{[%clk 0:01:17.3]} 23. Qxe6 {[%clk 0:02:19]} 23... Nf8 {[%clk 0:01:12.8]} 24.
Qg4 {[%clk 0:02:11.5]} 24... Nf5 {[%clk 0:01:12]} 25. Rae1 {[%clk 0:02:12.6]}
25... Ng6 {[%clk 0:01:10.7]} 26. Nf3 {[%clk 0:02:13.8]} 26... Qxf4 {[%clk
0:00:54.4]} 27. Qxf4 {[%clk 0:02:11.2]} 27... Nxf4 {[%clk 0:00:56.3]} 28. Ne5
{[%clk 0:02:12.5]} 28... Nxg2 {[%clk 0:00:57.8]} 29. Kxg2 {[%clk 0:02:05.2]}
29... Nh4+ {[%clk 0:00:56.4]} 30. Kg3 {[%clk 0:02:03.3]} 30... Rxf1 {[%clk
0:00:57.5]} 31. Rxf1 {[%clk 0:02:05.2]} 31... Ng6 {[%clk 0:00:59.1]} 32. Nxg6
{[%clk 0:01:09.2]} 32... hxg6 {[%clk 0:01:01]} 33. Re1 {[%clk 0:01:10.2]} 33...
Kf7 {[%clk 0:01:02.4]} 34. Re3 {[%clk 0:01:08.2]} 34... b6 {[%clk 0:00:52.2]}
35. Re5 {[%clk 0:00:59.3]} 35... b5 {[%clk 0:00:48.5]} 36. Kg4 {[%clk
0:00:56.8]} 36... Rd8 {[%clk 0:00:44.1]} 37. Re3 {[%clk 0:00:49.1]} 37... Rd6
{[%clk 0:00:42.9]} 38. h4 {[%clk 0:00:48.6]} 38... Re6 {[%clk 0:00:40.2]} 39.
Rxe6 {[%clk 0:00:03.5]} 39... Kxe6 {[%clk 0:00:42.1]} 40. Kf4 {[%clk 0:00:05]}
40... Kd6 {[%clk 0:00:43.6]} 41. Kf3 {[%clk 0:00:06.3]} 41... Ke6 {[%clk
0:00:45.1]} 42. Kg4 {[%clk 0:00:07.5]} 42... Kd6 {[%clk 0:00:46.1]} 43. h5
{[%clk 0:00:08.5]} 43... gxh5+ {[%clk 0:00:47.3]} 44. Kxh5 {[%clk 0:00:10.4]}
44... Ke7 {[%clk 0:00:49.1]} 45. Kg6 {[%clk 0:00:11.9]} 45... Kf8 {[%clk
0:00:50.5]} 46. Kf5 {[%clk 0:00:09.4]} 46... Kf7 {[%clk 0:00:52]} 47. g6+ {[%clk
0:00:07.1]} 47... Ke7 {[%clk 0:00:52.4]} 48. Ke5 {[%clk 0:00:08]} 48... Kd7
{[%clk 0:00:53.8]} 49. Kf5 {[%clk 0:00:09.2]} 49... Kd6 {[%clk 0:00:55.3]} 50.
Kf4 {[%clk 0:00:09.7]} 50... Ke6 {[%clk 0:00:54.5]} 51. Kg5 {[%clk 0:00:11.2]}
51... Kd7 {[%clk 0:00:53.2]} 52. Kf5 {[%clk 0:00:12.6]} 52... Kd6 {[%clk
0:00:54.9]} 53. Kf4 {[%clk 0:00:13.8]} 53... Ke7 {[%clk 0:00:55.7]} 54. Ke5
{[%clk 0:00:13.2]} 54... Kd7 {[%clk 0:00:57.4]} 55. Kf5 {[%clk 0:00:14.7]} 55...
Kd6 {[%clk 0:00:59.3]} 56. Kf4 {[%clk 0:00:15.8]} 56... Ke6 {[%clk 0:01:01.2]}
57. Kg5 {[%clk 0:00:17.2]} 57... Ke7 {[%clk 0:01:03.1]} 58. Kf5 {[%clk
0:00:18.7]} 58... Kd6 {[%clk 0:01:04.7]} 59. Kf4 {[%clk 0:00:19.2]} 59... Ke6
{[%clk 0:01:06.6]} 60. Kg5 {[%clk 0:00:20.7]} 60... Ke7 {[%clk 0:01:07.5]} 61.
Kf5 {[%clk 0:00:22.2]} 61... Kd6 {[%clk 0:01:07.8]} 1/2-1/2